[Event "*** Titled Tuesday Blitz"]
[Site "Chess.com"]
[Date "2020.04.28"]
[Round "9"]
[White "kuba2006"]
[Black "MarcoRiehle"]
[Result "0-1"]
[WhiteElo "2406"]
[BlackElo "2567"]
[TimeControl "180+1"]
[EndTime "11:47:33 PDT"]
[Termination "MarcoRiehle won on time"]

1. e4 {[%clk 0:02:32.9]} 1... e5 {[%clk 0:02:59.3]} 2. Nf3 {[%clk 0:02:32.6]}
2... Nf6 {[%clk 0:02:58.2]} 3. Nxe5 {[%clk 0:02:24]} 3... Nxe4 {[%clk
0:02:57.6]} 4. Qe2 {[%clk 0:02:22.2]} 4... Qe7 {[%clk 0:02:57.5]} 5. Qxe4 {[%clk
0:02:17]} 5... d6 {[%clk 0:02:57.6]} 6. d4 {[%clk 0:02:15.8]} 6... dxe5 {[%clk
0:02:44]} 7. Qxe5 {[%clk 0:02:14.7]} 7... Qxe5+ {[%clk 0:02:43.6]} 8. dxe5
{[%clk 0:02:15.6]} 8... Bf5 {[%clk 0:02:44]} 9. Bd3 {[%clk 0:02:06.2]} 9... Bxd3
{[%clk 0:02:43.5]} 10. cxd3 {[%clk 0:02:07.1]} 10... Nc6 {[%clk 0:02:44.4]} 11.
f4 {[%clk 0:02:04.8]} 11... Nb4 {[%clk 0:02:44.2]} 12. Na3 {[%clk 0:01:37.4]}
12... Nxd3+ {[%clk 0:02:40.6]} 13. Ke2 {[%clk 0:01:35.7]} 13... Nxc1+ {[%clk
0:02:40.4]} 14. Raxc1 {[%clk 0:01:32.5]} 14... Bxa3 {[%clk 0:02:41.3]} 15. bxa3
{[%clk 0:01:32.2]} 15... O-O-O {[%clk 0:02:42.2]} 16. Ke3 {[%clk 0:01:28.6]}
16... Rd5 {[%clk 0:02:38.8]} 17. Rhd1 {[%clk 0:01:27.4]} 17... Ra5 {[%clk
0:02:38.3]} 18. Rc3 {[%clk 0:01:25.7]} 18... Re8 {[%clk 0:02:34.6]} 19. Rdc1
{[%clk 0:01:22.8]} 19... c6 {[%clk 0:02:33]} 20. Kf3 {[%clk 0:01:20]} 20... f6
{[%clk 0:02:29.6]} 21. exf6 {[%clk 0:01:18.8]} 21... gxf6 {[%clk 0:02:30.5]} 22.
Rd1 {[%clk 0:01:18.2]} 22... Kc7 {[%clk 0:02:25.2]} 23. Rcd3 {[%clk 0:01:17.3]}
23... Re7 {[%clk 0:02:22.4]} 24. g3 {[%clk 0:01:13.2]} 24... Rc5 {[%clk
0:02:21.3]} 25. R1d2 {[%clk 0:01:12.1]} 25... b5 {[%clk 0:02:20.8]} 26. Kg4
{[%clk 0:01:10.8]} 26... a5 {[%clk 0:02:19.2]} 27. Kf3 {[%clk 0:00:51]} 27...
Rc1 {[%clk 0:02:14.5]} 28. h4 {[%clk 0:00:45]} 28... h5 {[%clk 0:02:12.9]} 29.
g4 {[%clk 0:00:42.1]} 29... Rf1+ {[%clk 0:02:08.1]} 30. Kg2 {[%clk 0:00:40.4]}
30... Rxf4 {[%clk 0:02:07.4]} 31. gxh5 {[%clk 0:00:38.3]} 31... Rxh4 {[%clk
0:02:06]} 32. Rh3 {[%clk 0:00:37.4]} 32... Rg4+ {[%clk 0:01:56.4]} 33. Rg3
{[%clk 0:00:35.4]} 33... Rh4 {[%clk 0:01:53.3]} 34. Rh3 {[%clk 0:00:35]} 34...
Rg7+ {[%clk 0:01:53.9]} 35. Kh2 {[%clk 0:00:34]} 35... Rhg4 {[%clk 0:01:53.4]}
36. h6 {[%clk 0:00:33.8]} 36... Rh7 {[%clk 0:01:53.4]} 37. Rg2 {[%clk
0:00:31.3]} 37... Rxg2+ {[%clk 0:01:43.8]} 38. Kxg2 {[%clk 0:00:32.2]} 38... Kd6
{[%clk 0:01:39.7]} 39. Kf3 {[%clk 0:00:31.9]} 39... c5 {[%clk 0:01:31.9]} 40.
Kg4 {[%clk 0:00:21.7]} 40... c4 {[%clk 0:01:28.2]} 41. Kf5 {[%clk 0:00:21.5]}
41... c3 {[%clk 0:01:24.2]} 42. Kg6 {[%clk 0:00:18.1]} 42... Rc7 {[%clk
0:01:21.1]} 43. h7 {[%clk 0:00:15.3]} 43... c2 {[%clk 0:01:21.4]} 44. h8=Q
{[%clk 0:00:08.7]} 44... c1=Q {[%clk 0:01:20.8]} 45. Qd8+ {[%clk 0:00:07.3]}
45... Kc6 {[%clk 0:01:19.2]} 46. Qxf6+ {[%clk 0:00:07.3]} 46... Kb7 {[%clk
0:01:19.7]} 47. Qf3+ {[%clk 0:00:06]} 47... Qc6+ {[%clk 0:01:16.7]} 48. Qxc6+
{[%clk 0:00:06]} 48... Rxc6+ {[%clk 0:01:17.6]} 49. Kf5 {[%clk 0:00:06.5]} 49...
Rc2 {[%clk 0:01:15.6]} 50. Ke4 {[%clk 0:00:06]} 50... Rxa2 {[%clk 0:01:13.3]}
51. Kd4 {[%clk 0:00:05.9]} 51... Rc2 {[%clk 0:01:12.6]} 52. Rh7+ {[%clk
0:00:05.1]} 52... Kb6 {[%clk 0:01:09.4]} 53. Rh6+ {[%clk 0:00:05]} 53... Rc6
{[%clk 0:01:10]} 54. Rh5 {[%clk 0:00:04.8]} 54... Rc4+ {[%clk 0:01:09.7]} 55.
Kd3 {[%clk 0:00:04.6]} 55... a4 {[%clk 0:01:08.8]} 56. Rh6+ {[%clk 0:00:04.2]}
56... Ka5 {[%clk 0:01:09]} 57. Rh8 {[%clk 0:00:03.9]} 57... Rc1 {[%clk
0:01:08.5]} 58. Ra8+ {[%clk 0:00:03.7]} 58... Kb6 {[%clk 0:01:08.5]} 59. Rb8+
{[%clk 0:00:04.2]} 59... Ka6 {[%clk 0:01:08.9]} 60. Ra8+ {[%clk 0:00:04.4]}
60... Kb7 {[%clk 0:01:09.1]} 61. Rh8 {[%clk 0:00:04.9]} 61... Ra1 {[%clk
0:01:08.5]} 62. Kc3 {[%clk 0:00:05.1]} 62... Rxa3+ {[%clk 0:01:08.4]} 63. Kb2
{[%clk 0:00:05.2]} 63... Rb3+ {[%clk 0:01:08.6]} 64. Ka2 {[%clk 0:00:05.6]}
64... Kb6 {[%clk 0:01:09.2]} 65. Rb8+ {[%clk 0:00:04.9]} 65... Ka5 {[%clk
0:01:09.6]} 66. Ra8+ {[%clk 0:00:05]} 66... Kb4 {[%clk 0:01:09.9]} 67. Rh8
{[%clk 0:00:04.9]} 67... Rg3 {[%clk 0:01:09.7]} 68. Rh4+ {[%clk 0:00:04.5]}
68... Ka5 {[%clk 0:01:09.8]} 69. Rh5 {[%clk 0:00:03.8]} 69... a3 {[%clk
0:01:09.9]} 70. Rf5 {[%clk 0:00:03.2]} 70... Ka4 {[%clk 0:01:09.6]} 71. Rf4+
{[%clk 0:00:03.3]} 71... b4 {[%clk 0:01:09.9]} 72. Re4 {[%clk 0:00:03.4]} 72...
Rg2+ {[%clk 0:01:07.7]} 73. Ka1 {[%clk 0:00:03.6]} 73... Rd2 {[%clk 0:01:07.7]}
74. Rf4 {[%clk 0:00:03.3]} 74... Kb3 {[%clk 0:01:07.6]} 75. Rf3+ {[%clk
0:00:03.3]} 75... Kc4 {[%clk 0:01:07.3]} 76. Rf4+ {[%clk 0:00:03]} 76... Rd4
{[%clk 0:01:07.7]} 77. Rf1 {[%clk 0:00:02.2]} 77... b3 {[%clk 0:01:07.7]} 78.
Rc1+ {[%clk 0:00:02.3]} 78... Kb4 {[%clk 0:01:08]} 79. Rg1 {[%clk 0:00:01.6]}
79... Rc4 {[%clk 0:01:08]} 80. Kb1 {[%clk 0:00:01.9]} 80... a2+ {[%clk
0:01:08.1]} 81. Ka1 {[%clk 0:00:02.2]} 81... Ka3 {[%clk 0:01:08]} 82. Rf1 {[%clk
0:00:02.3]} 82... Rc1+ {[%clk 0:01:08.8]} 0-1

[Event "*** Titled Tuesday Blitz"]
[Site "Chess.com"]
[Date "2020.04.28"]
[Round "9"]
[White "ChessMavenYeti"]
[Black "tamarozi99"]
[Result "1-0"]
[WhiteElo "2164"]
[BlackElo "1949"]
[TimeControl "180+1"]
[EndTime "11:47:33 PDT"]
[Termination "ChessMavenYeti won by resignation"]

1. d4 {[%clk 0:03:00.3]} 1... Nf6 {[%clk 0:02:53.1]} 2. c4 {[%clk 0:02:38.8]}
2... g6 {[%clk 0:02:50.4]} 3. g3 {[%clk 0:02:37.8]} 3... Bg7 {[%clk 0:02:49.7]}
4. Bg2 {[%clk 0:02:38.7]} 4... O-O {[%clk 0:02:50.2]} 5. e4 {[%clk 0:02:38.9]}
5... d6 {[%clk 0:02:50.4]} 6. Nc3 {[%clk 0:02:38.8]} 6... e5 {[%clk 0:02:47.1]}
7. Nf3 {[%clk 0:02:38.8]} 7... exd4 {[%clk 0:02:46.2]} 8. Nxd4 {[%clk
0:02:38.4]} 8... c6 {[%clk 0:02:45.4]} 9. O-O {[%clk 0:02:38]} 9... a5 {[%clk
0:02:45.4]} 10. Nb3 {[%clk 0:02:37.8]} 10... a4 {[%clk 0:02:40]} 11. Nd2 {[%clk
0:02:37.3]} 11... Nfd7 {[%clk 0:02:22.1]} 12. Nxa4 {[%clk 0:02:34.1]} 12... Qa5
{[%clk 0:02:11.5]} 13. Nc3 {[%clk 0:02:32]} 13... Na6 {[%clk 0:02:06.1]} 14. Rb1
{[%clk 0:02:26.5]} 14... Nb4 {[%clk 0:02:04.7]} 15. Nb3 {[%clk 0:02:23]} 15...
Qc7 {[%clk 0:01:55.8]} 16. Bf4 {[%clk 0:02:13.2]} 16... Ne5 {[%clk 0:01:47.5]}
17. a3 {[%clk 0:02:09.7]} 17... Nbd3 {[%clk 0:01:41]} 18. Bxe5 {[%clk
0:01:59.9]} 18... Nxe5 {[%clk 0:01:38.8]} 19. c5 {[%clk 0:02:00]} 19... dxc5
{[%clk 0:01:29.2]} 20. Nxc5 {[%clk 0:01:59.7]} 20... b6 {[%clk 0:01:28.8]} 21.
Nb3 {[%clk 0:01:58.4]} 21... Be6 {[%clk 0:01:28.3]} 22. Nd4 {[%clk 0:01:57.6]}
22... Bc4 {[%clk 0:01:27.9]} 23. Re1 {[%clk 0:01:56.7]} 23... Rfd8 {[%clk
0:01:23.9]} 24. b3 {[%clk 0:01:48.1]} 24... Bd3 {[%clk 0:01:21.5]} 25. Rb2
{[%clk 0:01:45.6]} 25... Rxd4 {[%clk 0:01:20.8]} 26. f4 {[%clk 0:01:42.4]} 26...
Nd7 {[%clk 0:01:12.2]} 27. Rd2 {[%clk 0:01:42]} 27... Rxa3 {[%clk 0:00:53]} 28.
Rxd3 {[%clk 0:01:40.7]} 28... Rxd3 {[%clk 0:00:53.1]} 29. Qxd3 {[%clk
0:01:40.5]} 29... Rxb3 {[%clk 0:00:53.5]} 30. Nd5 {[%clk 0:01:36.6]} 30... Rxd3
{[%clk 0:00:47.7]} 31. Nxc7 {[%clk 0:01:28.1]} 31... Bd4+ {[%clk 0:00:47]} 32.
Kf1 {[%clk 0:01:26.6]} 32... Rd2 {[%clk 0:00:45.5]} 33. Re2 {[%clk 0:01:24.6]}
33... Rd1+ {[%clk 0:00:43.6]} 34. Re1 {[%clk 0:01:24.8]} 34... Rd2 {[%clk
0:00:43.9]} 35. Re2 {[%clk 0:01:25]} 35... Rxe2 {[%clk 0:00:38.1]} 36. Kxe2
{[%clk 0:01:24.9]} 36... Bg1 {[%clk 0:00:38.3]} 37. h3 {[%clk 0:01:23.8]} 37...
c5 {[%clk 0:00:32.2]} 38. g4 {[%clk 0:01:17.2]} 38... Bh2 {[%clk 0:00:30.1]} 39.
Kf3 {[%clk 0:01:12]} 39... g5 {[%clk 0:00:30.2]} 40. Nd5 {[%clk 0:00:54.1]}
40... gxf4 {[%clk 0:00:30.1]} 41. Nxf4 {[%clk 0:00:50.4]} 41... Ne5+ {[%clk
0:00:30]} 42. Ke3 {[%clk 0:00:49.5]} 42... Bg1+ {[%clk 0:00:25.7]} 43. Kd2
{[%clk 0:00:48.3]} 43... b5 {[%clk 0:00:23.7]} 44. Nd5 {[%clk 0:00:47.3]} 44...
b4 {[%clk 0:00:20.4]} 45. Bf1 {[%clk 0:00:39.8]} 45... Bd4 {[%clk 0:00:19.9]}
46. Bb5 {[%clk 0:00:37.9]} 46... Nf3+ {[%clk 0:00:19.7]} 47. Kd3 {[%clk
0:00:36.3]} 47... Ne1+ {[%clk 0:00:18.6]} 48. Kc4 {[%clk 0:00:35.5]} 48... Nc2
{[%clk 0:00:17.2]} 49. Ba4 {[%clk 0:00:28.2]} 49... Na3+ {[%clk 0:00:16.1]} 50.
Kd3 {[%clk 0:00:26.7]} 50... Kg7 {[%clk 0:00:14.8]} 51. Nxb4 {[%clk 0:00:26.6]}
51... cxb4 {[%clk 0:00:12.2]} 52. Kxd4 {[%clk 0:00:26.6]} 52... Nb1 {[%clk
0:00:12.3]} 53. e5 {[%clk 0:00:23.1]} 53... Nc3 {[%clk 0:00:11]} 54. Bb3 {[%clk
0:00:22.7]} 54... Kg6 {[%clk 0:00:10.4]} 55. h4 {[%clk 0:00:21.6]} 55... h5
{[%clk 0:00:09.9]} 56. g5 {[%clk 0:00:21]} 56... Ne2+ {[%clk 0:00:08.5]} 57. Ke3
{[%clk 0:00:18.1]} 57... Ng3 {[%clk 0:00:07]} 58. Kf4 {[%clk 0:00:17.3]} 58...
Nf5 {[%clk 0:00:07]} 59. Bc2 {[%clk 0:00:17.3]} 59... b3 {[%clk 0:00:05.1]} 60.
Bxf5+ {[%clk 0:00:18.2]} 60... Kg7 {[%clk 0:00:05.3]} 61. Bb1 {[%clk 0:00:19.1]}
61... b2 {[%clk 0:00:04.5]} 62. Kf5 {[%clk 0:00:19.3]} 62... Kf8 {[%clk
0:00:03.6]} 63. Kf6 {[%clk 0:00:19]} 63... Ke8 {[%clk 0:00:03]} 64. e6 {[%clk
0:00:18.2]} 64... fxe6 {[%clk 0:00:02.3]} 65. Kxe6 {[%clk 0:00:19.1]} 65... Kf8
{[%clk 0:00:02.7]} 66. Kf6 {[%clk 0:00:20]} 66... Kg8 {[%clk 0:00:02.9]} 67. g6
{[%clk 0:00:20.9]} 67... Kf8 {[%clk 0:00:02.6]} 68. g7+ {[%clk 0:00:21.2]} 68...
Kg8 {[%clk 0:00:02.1]} 69. Ba2+ {[%clk 0:00:21.8]} 1-0

[Event "*** Titled Tuesday Blitz"]
[Site "Chess.com"]
[Date "2020.04.28"]
[Round "9"]
[White "MFBerna"]
[Black "IAgrest"]
[Result "1-0"]
[WhiteElo "2437"]
[BlackElo "2268"]
[TimeControl "180+1"]
[EndTime "11:47:35 PDT"]
[Termination "MFBerna won on time"]

1. d4 {[%clk 0:03:00.9]} 1... Nf6 {[%clk 0:02:59.3]} 2. Nf3 {[%clk 0:03:00]}
2... g6 {[%clk 0:02:58.9]} 3. g3 {[%clk 0:02:58.5]} 3... Bg7 {[%clk 0:02:59.1]}
4. Bg2 {[%clk 0:02:59]} 4... O-O {[%clk 0:02:59.1]} 5. O-O {[%clk 0:02:59.5]}
5... d6 {[%clk 0:02:59.4]} 6. c4 {[%clk 0:02:59.8]} 6... Nbd7 {[%clk 0:02:56.9]}
7. Nc3 {[%clk 0:02:59.7]} 7... a6 {[%clk 0:02:56.9]} 8. e4 {[%clk 0:02:58.1]}
8... e5 {[%clk 0:02:56.7]} 9. Re1 {[%clk 0:02:52.7]} 9... exd4 {[%clk
0:02:55.6]} 10. Nxd4 {[%clk 0:02:53.6]} 10... Ng4 {[%clk 0:02:55.4]} 11. Qxg4
{[%clk 0:02:34.7]} 11... Bxd4 {[%clk 0:02:53.5]} 12. Qd1 {[%clk 0:02:21]} 12...
Bg7 {[%clk 0:02:25.6]} 13. Be3 {[%clk 0:02:10.2]} 13... Ne5 {[%clk 0:02:24.7]}
14. Qe2 {[%clk 0:01:47.6]} 14... c6 {[%clk 0:02:15.4]} 15. Rad1 {[%clk
0:01:45.5]} 15... Qe7 {[%clk 0:02:09]} 16. h3 {[%clk 0:01:41.9]} 16... b5 {[%clk
0:02:05.9]} 17. cxb5 {[%clk 0:01:25.6]} 17... axb5 {[%clk 0:02:06.8]} 18. a3
{[%clk 0:01:11]} 18... Ba6 {[%clk 0:02:03]} 19. Qc2 {[%clk 0:01:04.7]} 19...
Rfe8 {[%clk 0:01:46.2]} 20. Kh2 {[%clk 0:01:00]} 20... Rad8 {[%clk 0:01:44.1]}
21. Ne2 {[%clk 0:00:50.3]} 21... Bb7 {[%clk 0:01:36.6]} 22. Bc1 {[%clk
0:00:41.2]} 22... c5 {[%clk 0:01:32.3]} 23. Nc3 {[%clk 0:00:38.1]} 23... Qf6
{[%clk 0:01:18]} 24. Nxb5 {[%clk 0:00:26.7]} 24... Bc6 {[%clk 0:01:05.3]} 25.
Nc7 {[%clk 0:00:21.5]} 25... Re7 {[%clk 0:01:03.6]} 26. Nd5 {[%clk 0:00:18.3]}
26... Bxd5 {[%clk 0:01:03.6]} 27. Rxd5 {[%clk 0:00:19.2]} 27... Nc6 {[%clk
0:00:56.8]} 28. Be3 {[%clk 0:00:15.8]} 28... h6 {[%clk 0:00:54.1]} 29. Red1
{[%clk 0:00:13.4]} 29... Red7 {[%clk 0:00:41.7]} 30. b4 {[%clk 0:00:13.3]} 30...
Nd4 {[%clk 0:00:21.8]} 31. Bxd4 {[%clk 0:00:12.5]} 31... cxd4 {[%clk 0:00:22]}
32. Qe2 {[%clk 0:00:09.2]} 32... Qe6 {[%clk 0:00:19.9]} 33. a4 {[%clk
0:00:08.7]} 33... Ra7 {[%clk 0:00:17.7]} 34. a5 {[%clk 0:00:08.6]} 34... Re8
{[%clk 0:00:17.3]} 35. R5xd4 {[%clk 0:00:06.5]} 35... Bxd4 {[%clk 0:00:16.1]}
36. Rxd4 {[%clk 0:00:07.4]} 36... Qe5 {[%clk 0:00:16]} 37. Qd2 {[%clk
0:00:07.2]} 37... Rb7 {[%clk 0:00:15.6]} 38. Rxd6 {[%clk 0:00:07.1]} 38... Qb5
{[%clk 0:00:14.1]} 39. Rd8 {[%clk 0:00:06]} 39... Rb8 {[%clk 0:00:14]} 40. Rxb8
{[%clk 0:00:05.7]} 40... Rxb8 {[%clk 0:00:13.7]} 41. e5 {[%clk 0:00:02.3]} 41...
Qxe5 {[%clk 0:00:12.9]} 42. Qd7 {[%clk 0:00:01.6]} 42... Rxb4 {[%clk 0:00:09.7]}
43. Qc8+ {[%clk 0:00:01.4]} 43... Kg7 {[%clk 0:00:09]} 44. Qc2 {[%clk 0:00:02]}
44... Qxa5 {[%clk 0:00:08.2]} 45. h4 {[%clk 0:00:02.2]} 45... Qb6 {[%clk
0:00:08.3]} 46. Qc3+ {[%clk 0:00:02.5]} 46... Kg8 {[%clk 0:00:06.9]} 47. Qc8+
{[%clk 0:00:02.9]} 47... Kg7 {[%clk 0:00:06.9]} 48. Qc3+ {[%clk 0:00:03]} 48...
Kh7 {[%clk 0:00:06.9]} 49. Qf3 {[%clk 0:00:03.9]} 49... Qe6 {[%clk 0:00:06]} 50.
Kg1 {[%clk 0:00:04]} 50... Rb1+ {[%clk 0:00:05.5]} 51. Kh2 {[%clk 0:00:04.5]}
51... Rb2 {[%clk 0:00:05.8]} 52. Bh3 {[%clk 0:00:04.6]} 52... Qe7 {[%clk
0:00:05.6]} 53. Kg2 {[%clk 0:00:04.2]} 53... Rd2 {[%clk 0:00:04.5]} 54. h5
{[%clk 0:00:04.5]} 54... Qc7 {[%clk 0:00:01.5]} 55. hxg6+ {[%clk 0:00:05.4]}
55... fxg6 {[%clk 0:00:02]} 56. Be6 {[%clk 0:00:05.2]} 56... Qe7 {[%clk
0:00:01.8]} 57. Bc4 {[%clk 0:00:05.1]} 57... Rd6 {[%clk 0:00:01.4]} 58. Bd3
{[%clk 0:00:05.3]} 58... Rf6 {[%clk 0:00:01.5]} 59. Qd5 {[%clk 0:00:04.8]} 59...
Kg7 {[%clk 0:00:01.6]} 60. Bc4 {[%clk 0:00:04.9]} 60... Qf8 {[%clk 0:00:01.3]}
61. Qd7+ {[%clk 0:00:04.7]} 61... Kh8 {[%clk 0:00:01]} 62. Qd4 {[%clk
0:00:05.3]} 62... Kg7 {[%clk 0:00:01]} 63. g4 {[%clk 0:00:05.1]} 1-0

[Event "*** Titled Tuesday Blitz"]
[Site "Chess.com"]
[Date "2020.04.28"]
[Round "9"]
[White "avantage_ru"]
[Black "Fh2411"]
[Result "1-0"]
[WhiteElo "2638"]
[BlackElo "2479"]
[TimeControl "180+1"]
[EndTime "11:47:36 PDT"]
[Termination "avantage_ru won on time"]

1. g3 {[%clk 0:03:00.9]} 1... d5 {[%clk 0:02:59.6]} 2. Nf3 {[%clk 0:03:00.3]}
2... c6 {[%clk 0:03:00.5]} 3. Bg2 {[%clk 0:03:00.4]} 3... Nf6 {[%clk 0:03:01.1]}
4. c4 {[%clk 0:02:59.4]} 4... Bf5 {[%clk 0:02:53.1]} 5. cxd5 {[%clk 0:02:58.1]}
5... cxd5 {[%clk 0:02:50.2]} 6. Qb3 {[%clk 0:02:58]} 6... Qc7 {[%clk 0:02:40.2]}
7. Nc3 {[%clk 0:02:57.3]} 7... e6 {[%clk 0:02:39.8]} 8. d3 {[%clk 0:02:57.4]}
8... Nc6 {[%clk 0:02:03.8]} 9. Bf4 {[%clk 0:02:54]} 9... Qb6 {[%clk 0:02:01]}
10. Qxb6 {[%clk 0:02:52.3]} 10... axb6 {[%clk 0:02:01.9]} 11. Nb5 {[%clk
0:02:52.1]} 11... Bb4+ {[%clk 0:01:54.2]} 12. Bd2 {[%clk 0:02:50.7]} 12... Bxd2+
{[%clk 0:01:53.3]} 13. Kxd2 {[%clk 0:02:50.3]} 13... Kd7 {[%clk 0:01:53.7]} 14.
Rhc1 {[%clk 0:02:47.6]} 14... Rhc8 {[%clk 0:01:51.4]} 15. h3 {[%clk 0:02:44.2]}
15... Bg6 {[%clk 0:01:39.2]} 16. a3 {[%clk 0:02:39.2]} 16... Ne8 {[%clk
0:01:38.3]} 17. Nfd4 {[%clk 0:02:32.3]} 17... f6 {[%clk 0:01:15.6]} 18. f4
{[%clk 0:02:30.4]} 18... Ra4 {[%clk 0:00:54]} 19. e3 {[%clk 0:02:17.9]} 19...
Bf7 {[%clk 0:00:47.3]} 20. h4 {[%clk 0:02:14.9]} 20... Ra5 {[%clk 0:00:28.2]}
21. b4 {[%clk 0:02:03.4]} 21... Ra4 {[%clk 0:00:21.6]} 22. Rc3 {[%clk
0:01:52.6]} 22... Nxd4 {[%clk 0:00:18.8]} 23. Nxd4 {[%clk 0:01:50]} 23... Rxc3
{[%clk 0:00:16.8]} 24. Kxc3 {[%clk 0:01:49.9]} 24... Nd6 {[%clk 0:00:17.7]} 25.
Kb2 {[%clk 0:01:47]} 25... Ra8 {[%clk 0:00:17.7]} 26. Rc1 {[%clk 0:01:45.6]}
26... Rc8 {[%clk 0:00:15.3]} 27. Rg1 {[%clk 0:01:43.9]} 27... Rc7 {[%clk
0:00:12.7]} 28. g4 {[%clk 0:01:42.7]} 28... e5 {[%clk 0:00:12.3]} 29. fxe5
{[%clk 0:01:42.1]} 29... fxe5 {[%clk 0:00:13.2]} 30. Nf3 {[%clk 0:01:42.5]}
30... e4 {[%clk 0:00:12]} 31. Ne5+ {[%clk 0:01:39.8]} 31... Ke6 {[%clk
0:00:12.4]} 32. d4 {[%clk 0:01:36.4]} 32... Nc4+ {[%clk 0:00:12.7]} 33. Nxc4
{[%clk 0:01:36.6]} 33... Rxc4 {[%clk 0:00:13.2]} 34. g5 {[%clk 0:01:36.5]} 34...
Ke7 {[%clk 0:00:12.5]} 35. Bf1 {[%clk 0:01:29]} 35... Rc8 {[%clk 0:00:12]} 36.
Bb5 {[%clk 0:01:28.3]} 36... Be6 {[%clk 0:00:12.3]} 37. h5 {[%clk 0:01:21.8]}
37... Rf8 {[%clk 0:00:11.6]} 38. h6 {[%clk 0:01:19.8]} 38... g6 {[%clk
0:00:11.4]} 39. Rc1 {[%clk 0:01:17.3]} 39... Kd6 {[%clk 0:00:11.8]} 40. Rf1
{[%clk 0:01:11]} 40... Rf3 {[%clk 0:00:08.6]} 41. a4 {[%clk 0:00:55.1]} 41...
Bh3 {[%clk 0:00:07.5]} 42. Re1 {[%clk 0:00:51.8]} 42... Rg3 {[%clk 0:00:06.6]}
43. Rh1 {[%clk 0:00:50.3]} 43... Bf5 {[%clk 0:00:06.5]} 44. a5 {[%clk
0:00:46.8]} 44... bxa5 {[%clk 0:00:07.4]} 45. bxa5 {[%clk 0:00:47.3]} 45... Rxg5
{[%clk 0:00:08.1]} 46. Kc3 {[%clk 0:00:47.4]} 46... Rh5 {[%clk 0:00:08.1]} 47.
Rb1 {[%clk 0:00:46.1]} 47... Rxh6 {[%clk 0:00:08.3]} 48. Be8 {[%clk 0:00:44.4]}
48... Kc7 {[%clk 0:00:08.5]} 49. Kb4 {[%clk 0:00:44.6]} 49... Rh2 {[%clk
0:00:08.5]} 50. Rc1+ {[%clk 0:00:44.2]} 50... Kb8 {[%clk 0:00:08.6]} 51. Kc5
{[%clk 0:00:42.1]} 51... Re2 {[%clk 0:00:07.8]} 52. Rc3 {[%clk 0:00:40.9]} 52...
h5 {[%clk 0:00:05.2]} 53. Rb3 {[%clk 0:00:40.6]} 53... Kc7 {[%clk 0:00:04.6]}
54. Kxd5 {[%clk 0:00:39.3]} 54... h4 {[%clk 0:00:05.1]} 55. Ke5 {[%clk
0:00:35.3]} 55... h3 {[%clk 0:00:05]} 56. d5 {[%clk 0:00:32.9]} 56... h2 {[%clk
0:00:05.4]} 57. Rb1 {[%clk 0:00:32.6]} 57... Rg2 {[%clk 0:00:05.3]} 58. Rh1
{[%clk 0:00:31.2]} 58... Bg4 {[%clk 0:00:04.5]} 59. Bxg6 {[%clk 0:00:29.7]}
59... Re2 {[%clk 0:00:03.7]} 60. d6+ {[%clk 0:00:28.4]} 60... Kd8 {[%clk
0:00:03.5]} 61. Bxe4 {[%clk 0:00:26.1]} 61... Rxe3 {[%clk 0:00:03.8]} 62. Kf4
{[%clk 0:00:25.8]} 62... Re2 {[%clk 0:00:02.9]} 63. Bxb7 {[%clk 0:00:25.7]}
63... Bd7 {[%clk 0:00:02.7]} 64. a6 {[%clk 0:00:24.5]} 64... Bc8 {[%clk
0:00:02.1]} 65. Rb1 {[%clk 0:00:20.2]} 65... Ra2 {[%clk 0:00:01.7]} 66. Kg3
{[%clk 0:00:18.8]} 66... Bd7 {[%clk 0:00:01]} 67. Rh1 {[%clk 0:00:17.2]} 1-0